fUST/lending_fUST_20240927
["ID","MTS","AMOUNT","RATE_DAILY","PERIOD"]
[339227184,1727376641278,-500.0,0.00021999,120]
[339227185,1727376641288,-507.76794046,0.00021999,120]
[339227186,1727376641297,-500.0,0.00021999,120]
[339227187,1727376641306,-504.96056214,0.00021999,120]
[339227188,1727376641316,-500.0,0.00021999,120]
[339227189,1727376641325,-2723.78,0.00021999,120]
[339227190,1727376641335,-500.0,0.00021999,120]
[339227191,1727376641344,-2723.78,0.00021999,120]
[339227192,1727376641355,-500.0,0.00021999,120]
[339227193,1727376641366,-2723.78,0.00021999,120]
[339227194,1727376641376,-503.3790779,0.00021999,120]
[339227195,1727376641387,-500.0,0.00021999,120]
[339227196,1727376641399,-2723.78,0.00021999,120]
[339227197,1727376641410,-606.26,0.00021999,120]
[339227198,1727376641419,-2723.78,0.00021999,120]
[339227199,1727376641430,-2723.78,0.00021999,120]
[339227200,1727376641441,-2723.78,0.00021999,120]
[339227201,1727376641451,-2723.78,0.00021999,120]
[339227202,1727376641460,-2723.78,0.00021999,120]
[339227203,1727376641469,-2723.78,0.00021999,120]
[339227204,1727376641478,-2723.78,0.00021999,120]
[339227205,1727376641488,-2723.78,0.00021999,120]
[339227206,1727376641497,-2723.78,0.00021999,120]
[339227207,1727376641508,-2723.78,0.00021999,120]
[339227208,1727376641517,-2723.78,0.00021999,120]
[339227209,1727376641528,-2723.78,0.00021999,120]
[339227210,1727376641537,-2723.78,0.00021999,120]
[339227211,1727376641546,-2723.78,0.00021999,120]
[339227212,1727376641557,-2723.78,0.00021999,120]
[339227213,1727376641566,-2723.78,0.00021999,120]
[339227214,1727376641575,-2723.78,0.00021999,120]
[339227215,1727376641584,-2723.78,0.00021999,120]
[339227216,1727376641594,-2723.78,0.00021999,120]
[339227217,1727376641603,-2723.7911158,0.00021999,120]
[339227218,1727376641613,-375.0,0.00021999,2]
[339227219,1727376641622,-500.0,0.00021999,120]
[339227220,1727376641631,-500.0,0.00021999,120]
[339227221,1727376641642,-500.0,0.00021999,120]
[339227222,1727376641651,-500.0,0.00021999,120]
[339227223,1727376641661,-500.0,0.00021999,120]
[339227224,1727376641670,-260.8141802,0.00021999,120]
[339227225,1727376641679,-500.0,0.00021999,120]
[339227226,1727376641688,-500.0,0.00021999,120]
[339227227,1727376641698,-500.0,0.00021999,120]
[339227228,1727376641707,-308.96,0.00021999,120]
[339227229,1727376641716,-500.0,0.00021999,120]
[339227230,1727376641725,-500.0,0.00021999,120]
[339227231,1727376641735,-500.0,0.00021999,120]
[339227232,1727376641745,-500.0,0.00021999,120]
[339227233,1727376641754,-500.0,0.00021999,120]
[339227234,1727376641763,-500.0,0.00021999,120]
[339227235,1727376641773,-500.0,0.00021999,120]
[339227236,1727376641783,-507.92874699,0.00021999,120]
[339227237,1727376641792,-534.59752582,0.00021999,120]
[339227238,1727376641802,-500.0,0.00021999,120]
[339227239,1727376641811,-508.91502466,0.00021999,120]
[339227240,1727376641823,-500.0,0.00021999,120]
[339227241,1727376641834,-502.27370938,0.00021999,120]
[339227242,1727376641843,-505.46800575,0.00021999,120]
[339227243,1727376641854,-509.19869883,0.00021999,120]
[339227244,1727376641863,-500.0,0.00021999,120]
[339227245,1727376641872,-536.75608539,0.00021999,120]
[339227246,1727376641883,-484.43828269,0.00021999,120]
[339227247,1727376641895,-181.57311314,0.00021999,120]
[339227248,1727376641906,-500.0,0.00021999,120]
[339227249,1727376641915,-500.0,0.00021999,120]
[339227250,1727376641924,-500.0,0.00021999,120]
[339227251,1727376641933,-504.65656163,0.00021999,120]
[339227252,1727376641943,-602.30109424,0.00021999,120]
[339227253,1727376641952,-500.0,0.00021999,120]
[339227254,1727376641962,-500.0,0.00021999,120]
[339227255,1727376641972,-500.0,0.00021999,120]
[339227256,1727376641982,-500.0,0.00021999,120]
[339227257,1727376641991,-500.0,0.00021999,120]
[339227258,1727376642001,-224.43052595,0.00021999,120]
[339227259,1727376642010,-504.24188602,0.00021999,120]
[339227260,1727376642019,-500.0,0.00021999,120]
[339227261,1727376642029,-500.0,0.00021999,120]
[339227262,1727376642038,-500.0,0.00021999,120]
[339227263,1727376642048,-505.71186918,0.00021999,120]
[339227264,1727376642058,-188.10734985,0.00021999,120]
[339227265,1727376642067,-500.0,0.00021999,120]
[339227266,1727376642076,-484.25287736,0.00021999,120]
[339227267,1727376642086,-513.18335697,0.00021999,120]
[339227268,1727376642095,-500.0,0.00021999,120]
[339227269,1727376642104,-519.7202085,0.00021999,120]
[339227270,1727376642114,-505.24527036,0.00021999,120]
[339227271,1727376642123,-500.0,0.00021999,120]
[339227272,1727376642137,-500.0,0.00021999,120]
[339227273,1727376642146,-507.37592985,0.00021999,120]
[339227274,1727376642156,-515.08963747,0.00021999,120]
[339227275,1727376642165,-510.9878977,0.00021999,120]
[339227276,1727376642174,-500.0,0.00021999,120]
[339227277,1727376642184,-472.52862718,0.00021999,120]
[339227278,1727376642193,-449.38717749,0.00021999,120]
[339227279,1727376642203,-500.0,0.00021999,120]
[339227280,1727376642213,-500.0,0.00021999,120]
[339227281,1727376642222,-579.09,0.00021999,120]
[339227282,1727376642231,-500.0,0.00021999,120]
[339227283,1727376642240,-510.30030454,0.00021999,120]
[339227284,1727376642249,-531.79053898,0.00021999,30]
[339227286,1727376642258,-500.0,0.00021999,120]
[339227287,1727376642267,-500.0,0.00021999,120]
[339227288,1727376642276,-500.0,0.00021999,120]
[339227289,1727376642286,-172.24508057,0.00021999,120]
[339227290,1727376642295,-500.0,0.00021999,120]
[339227291,1727376642305,-331.82,0.00021999,120]
[339227292,1727376642315,-192.41148625,0.00021999,120]
[339227293,1727376642481,-307.58851375,0.00021999,120]
[339227294,1727376642490,-502.04737337,0.00021999,120]
[339227295,1727376642499,-409.44508317,0.00021999,120]
[339227296,1727376642508,-488.49876949,0.00021999,120]
[339227297,1727376642517,-507.77747023,0.00021999,120]
[339227298,1727376642526,-500.0,0.00021999,5]
[339227299,1727376642536,-500.0,0.00021999,5]
[339227301,1727376642545,-500.0,0.00021999,5]
[339227302,1727376642554,-500.0,0.00021999,5]
[339227303,1727376642563,-500.0,0.00021999,5]
[339227304,1727376642573,-500.0,0.00021999,5]
[339227305,1727376642582,-500.0,0.00021999,5]
[339227306,1727376642593,-348.45443033,0.00021999,5]
[339227307,1727376642603,-500.0,0.00021999,120]
[339227308,1727376642612,-500.0,0.00021999,120]
[339227309,1727376642621,-500.0,0.00021999,120]
[339227310,1727376642630,-511.62746967,0.00021999,120]
[339227311,1727376642642,-500.0,0.00021999,120]
[339227312,1727376642651,-500.0,0.00021999,120]
[339227314,1727376642660,-500.0,0.00021999,120]
[339227315,1727376642669,-506.56667962,0.00021999,120]
[339227317,1727376642678,-500.0,0.00021999,120]
[339227319,1727376642687,-508.64998226,0.00021999,120]
[339227320,1727376642696,-500.0,0.00021999,120]
[339227321,1727376642706,-506.87931197,0.00021999,120]
[339227322,1727376642715,-505.84903432,0.00021999,120]
[339227323,1727376642725,-500.0,0.00021999,120]
[339227324,1727376642734,-500.0,0.00021999,120]
[339227325,1727376642743,-500.0,0.00021999,120]
[339227326,1727376642753,-8.59771741,0.00021999,120]
[339227330,1727376643944,-491.40228259,0.00021999,120]
[339227331,1727376643953,-500.0,0.00021999,120]
[339227332,1727376643963,-505.02335943,0.00021999,120]
[339227333,1727376643972,-508.21840169,0.00021999,120]
[339227334,1727376643981,-500.0,0.00021999,120]
[339227335,1727376643991,-506.82296311,0.00021999,120]
[339227336,1727376644000,-500.0,0.00021999,120]
[339227337,1727376644010,-500.0,0.00021999,120]
[339227338,1727376644019,-500.0,0.00021999,120]
[339227339,1727376644030,-312.23,0.00021999,120]
[339227340,1727376644039,-500.0,0.00021999,120]
[339227341,1727376644049,-457.10591749,0.00021999,120]
[339227342,1727376644058,-500.0,0.00021999,120]
[339227343,1727376644068,-500.0,0.00021999,120]
[339227344,1727376644077,-500.0,0.00021999,120]
[339227345,1727376644087,-407.26449209,0.00021999,120]
[339227346,1727376644096,-500.0,0.00021999,120]
[339227347,1727376644105,-500.0,0.00021999,120]
[339227348,1727376644115,-505.18457137,0.00021999,120]
[339227349,1727376644124,-500.0,0.00021999,120]
[339227350,1727376644134,-506.46726146,0.00021999,120]
[339227351,1727376644143,-500.0,0.00021999,120]
[339227352,1727376644153,-500.0,0.00021999,120]
[339227353,1727376644162,-427.57,0.00021999,120]
[339227354,1727376644171,-503.9571007,0.00021999,120]
[339227355,1727376644181,-507.87431314,0.00021999,120]
[339227356,1727376644190,-500.0,0.00021999,120]
[339227357,1727376644199,-508.97853094,0.00021999,120]
[339227358,1727376644208,-586.00331074,0.00021999,120]
[339227359,1727376644217,-506.38772784,0.00021999,120]
[339227360,1727376644227,-512.72377837,0.00021999,120]
[339227361,1727376644237,-500.0,0.00021999,120]
[339227362,1727376644249,-500.0,0.00021999,120]
[339227363,1727376644259,-500.0,0.00021999,120]
[339227364,1727376644268,-500.0,0.00021999,120]
[339227365,1727376644277,-206.50780872,0.00021999,120]
[339227366,1727376644287,-516.07363785,0.00021999,120]
[339227367,1727376644296,-503.63596924,0.00021999,120]
[339227368,1727376644305,-500.0,0.00021999,10]
[339227369,1727376644315,-500.0,0.00021999,10]
[339227370,1727376644324,-500.0,0.00021999,10]
[339227371,1727376644333,-515.44441386,0.00021999,120]
[339227372,1727376644342,-500.0,0.00021999,10]
[339227373,1727376644352,-500.0,0.00021999,10]
[339227374,1727376644365,-500.0,0.00021999,10]
[339227375,1727376644374,-500.0,0.00021999,10]
[339227376,1727376644383,-500.0,0.00021999,10]
[339227377,1727376644394,-507.83377196,0.00021999,120]
[339227378,1727376644405,-500.0,0.00021999,10]
[339227379,1727376644415,-502.0307489,0.00021999,120]
[339227380,1727376644424,-589.7915112,0.00021999,10]
[339227381,1727376644436,-501.56942968,0.00021999,120]
[339227382,1727376644445,-500.0,0.00021999,120]
[339227383,1727376644455,-508.88685302,0.00021999,120]
[339227384,1727376644464,-1030.73,0.00021999,2]
[339227385,1727376644473,-1030.73,0.00021999,2]
[339227386,1727376644482,-563.96058372,0.00021999,120]
[339227387,1727376644491,-1030.73,0.00021999,2]
[339227388,1727376644499,-1030.73,0.00021999,2]
[339227389,1727376644509,-1030.73,0.00021999,2]
[339227390,1727376644520,-1030.73,0.00021999,2]
[339227391,1727376644532,-1030.73,0.00021999,2]
[339227392,1727376644542,-1030.73,0.00021999,2]
[339227393,1727376644552,-1030.73,0.00021999,2]
[339227394,1727376644561,-1030.73,0.00021999,2]
[339227395,1727376644571,-1030.73,0.00021999,2]
[339227396,1727376644580,-1030.73,0.00021999,2]
[339227397,1727376644590,-1030.73,0.00021999,2]
[339227398,1727376644599,-1030.73,0.00021999,2]
[339227399,1727376644608,-500.0,0.00021999,120]
[339227400,1727376644617,-1030.73,0.00021999,2]
[339227401,1727376644626,-163.87137728,0.00021999,120]
[339227402,1727376644636,-1030.73,0.00021999,2]
[339227403,1727376644645,-503.3835725,0.00021999,120]
[339227404,1727376644655,-1030.73,0.00021999,2]
[339227405,1727376644665,-1030.73,0.00021999,2]
[339227406,1727376644674,-1030.73,0.00021999,2]
[339227407,1727376644683,-1030.73,0.00021999,2]
[339227408,1727376644692,-1030.73,0.00021999,2]
[339227409,1727376644701,-1030.73,0.00021999,2]
[339227410,1727376644710,-1030.73,0.00021999,2]
[339227411,1727376644719,-1030.90999753,0.00021999,2]
[339227412,1727376644729,-502.90530961,0.00021999,120]
[339227413,1727376644738,-500.0,0.00021999,120]
[339227414,1727376644747,-500.0,0.00021999,120]
[339227415,1727376644756,-505.26937943,0.00021999,120]
[339227416,1727376644765,-817.6377036,0.00021999,5]
[339227417,1727376644774,-599.815867,0.00021999,120]
[339227418,1727376644783,-505.45410384,0.00021999,120]
[339227419,1727376644792,-500.0,0.00021999,120]
[339227420,1727376644801,-502.38613304,0.00021999,120]
[339227421,1727376644810,-500.0,0.00021999,120]
[339227422,1727376644819,-500.0,0.00021999,120]
[339227423,1727376644828,-179.68,0.00021999,120]
[339227424,1727376644837,-504.06259911,0.00021999,120]
[339227425,1727376644847,-500.0,0.00021999,120]
[339227426,1727376644856,-506.41081867,0.00021999,120]
[339227427,1727376644866,-547.26700307,0.00021999,120]
[339227428,1727376644875,-505.19458745,0.00021999,120]
[339227429,1727376644885,-500.0,0.00021999,120]
[339227430,1727376644894,-503.0,0.00021999,120]
[339227431,1727376644903,-610.0,0.00021999,120]
[339227432,1727376644912,-796.58,0.00021999,25]
[339227433,1727376644921,-796.58,0.00021999,25]
[339227434,1727376644930,-796.58,0.00021999,25]
[339227435,1727376644939,-500.0,0.00021999,120]
[339227436,1727376644948,-107.91545876,0.00021999,25]
[339227444,1727376647121,-688.66454124,0.00021999,25]
[339227445,1727376647130,-506.26578978,0.00021999,120]
[339227446,1727376647142,-796.58,0.00021999,25]
[339227447,1727376647151,-796.58,0.00021999,25]
[339227448,1727376647161,-796.58,0.00021999,25]
[339227449,1727376647176,-555.08255071,0.00021999,120]
[339227450,1727376647186,-796.58,0.00021999,25]
[339227451,1727376647195,-504.33733776,0.00021999,120]
[339227452,1727376647206,-796.58,0.00021999,25]
[339227453,1727376647216,-2403.27,0.00021999,5]
[339227454,1727376647226,-796.58,0.00021999,25]
[339227455,1727376647235,-796.58,0.00021999,25]
[339227456,1727376647246,-2403.27,0.00021999,5]
[339227457,1727376647257,-796.58,0.00021999,25]
[339227458,1727376647266,-2403.27,0.00021999,5]
[339227459,1727376647277,-500.0,0.00021999,120]
[339227460,1727376647286,-796.58,0.00021999,25]
[339227461,1727376647296,-2403.27,0.00021999,5]
[339227462,1727376647305,-500.0,0.00021999,120]
[339227463,1727376647315,-2403.27,0.00021999,5]
[339227464,1727376647324,-506.88725659,0.00021999,120]
[339227465,1727376647334,-2403.27,0.00021999,5]
[339227466,1727376647343,-796.58,0.00021999,25]
[339227467,1727376647354,-503.59862527,0.00021999,120]
[339227468,1727376647366,-796.58,0.00021999,25]
[339227469,1727376647376,-796.58,0.00021999,25]
[339227470,1727376647385,-500.0,0.00021999,120]
[339227471,1727376647398,-505.27325616,0.00021999,120]
[339227472,1727376647409,-2403.27,0.00021999,5]
[339227473,1727376647419,-796.58,0.00021999,25]
[339227474,1727376647430,-796.58,0.00021999,25]
[339227475,1727376647440,-2403.27,0.00021999,5]
[339227476,1727376647451,-2403.27,0.00021999,5]
[339227477,1727376647462,-796.58,0.00021999,25]
[339227478,1727376647472,-2403.27,0.00021999,5]
[339227479,1727376647482,-796.58,0.00021999,25]
[339227480,1727376647492,-2403.27,0.00021999,5]
[339227481,1727376647502,-2403.27,0.00021999,5]
[339227482,1727376647512,-796.58,0.00021999,25]
[339227483,1727376647522,-796.58,0.00021999,25]
[339227484,1727376647533,-796.58,0.00021999,25]
[339227485,1727376647543,-2403.27,0.00021999,5]
[339227486,1727376647552,-796.78161103,0.00021999,25]
[339227487,1727376647561,-2403.27,0.00021999,5]
[339227488,1727376647571,-500.0,0.00021999,120]
[339227489,1727376647580,-2403.27,0.00021999,5]
[339227490,1727376647590,-289.87317875,0.00021999,120]
[339227491,1727376647599,-2403.27,0.00021999,5]
[339227492,1727376647608,-2403.27,0.00021999,5]
[339227493,1727376647618,-2403.27,0.00021999,5]
[339227494,1727376647627,-2403.27,0.00021999,5]
[339227495,1727376647638,-500.0,0.00021999,120]
[339227496,1727376647647,-2403.27,0.00021999,5]
[339227497,1727376647656,-502.1774082,0.00021999,120]
[339227498,1727376647667,-2403.27,0.00021999,5]
[339227499,1727376647677,-2403.27,0.00021999,5]
[339227500,1727376647687,-2403.27,0.00021999,5]
[339227501,1727376647696,-1581.74916551,0.00021999,5]
[339227502,1727376648259,-821.56654747,0.00021999,5]
[339227503,1727376648269,-535.14646016,0.00021999,120]
[339227504,1727376648278,-603.53119924,0.00021999,120]
[339227505,1727376648288,-500.0,0.00021999,120]
[339227506,1727376648298,-500.0,0.00021999,120]
[339227507,1727376648307,-506.56726671,0.00021999,120]
[339227508,1727376648317,-503.88113662,0.00021999,120]
[339227509,1727376648326,-2808.21,0.00021999,2]
[339227510,1727376648335,-2808.21,0.00021999,2]
[339227511,1727376648345,-2808.21,0.00021999,2]
[339227512,1727376648357,-2808.21,0.00021999,2]
[339227513,1727376648367,-2808.21,0.00021999,2]
[339227514,1727376648376,-2808.21,0.00021999,2]
[339227515,1727376648385,-430.4787148,0.00021999,2]
[339227516,1727376648436,-2377.7312852,0.00021999,2]
[339227517,1727376648445,-2808.21,0.00021999,2]
[339227518,1727376648454,-2808.21,0.00021999,2]
[339227519,1727376648464,-503.25066039,0.00021999,120]
[339227520,1727376648475,-2808.21,0.00021999,2]
[339227521,1727376648484,-2808.21,0.00021999,2]
[339227522,1727376648494,-500.0,0.00021999,120]
[339227523,1727376648504,-2808.21,0.00021999,2]
[339227524,1727376648514,-2808.21,0.00021999,2]
[339227525,1727376648524,-500.0,0.00021999,120]
[339227526,1727376648533,-510.835039,0.00021999,120]
[339227527,1727376648543,-502.45037235,0.00021999,120]
[339227528,1727376648552,-2808.21,0.00021999,2]
[339227529,1727376648562,-2808.21,0.00021999,2]
[339227530,1727376648572,-2808.21,0.00021999,2]
[339227531,1727376648581,-2808.21,0.00021999,2]
[339227532,1727376648592,-2808.21,0.00021999,2]
[339227533,1727376648601,-2808.21,0.00021999,2]
[339227534,1727376648612,-2808.21,0.00021999,2]
[339227535,1727376648621,-548.17,0.00021999,30]
[339227536,1727376648631,-2808.21,0.00021999,2]
[339227537,1727376648640,-548.17,0.00021999,30]
[339227538,1727376648650,-481.10396738,0.00021999,120]
[339227539,1727376648659,-2808.21,0.00021999,2]
[339227540,1727376648669,-548.17,0.00021999,30]
[339227541,1727376648678,-2808.21,0.00021999,2]
[339227542,1727376648688,-548.17,0.00021999,30]
[339227543,1727376648698,-2808.33143745,0.00021999,2]
[339227544,1727376648707,-548.17,0.00021999,30]
[339227545,1727376648717,-548.17,0.00021999,30]
[339227546,1727376648727,-548.17,0.00021999,30]
[339227547,1727376648736,-548.17,0.00021999,30]
[339227548,1727376648745,-548.17,0.00021999,30]
[339227549,1727376648755,-548.17,0.00021999,30]
[339227550,1727376648764,-548.17,0.00021999,30]
[339227551,1727376648773,-500.0,0.00021999,120]
[339227552,1727376648784,-548.17,0.00021999,30]
[339227553,1727376648793,-500.0,0.00021999,120]
[339227554,1727376648803,-548.17,0.00021999,30]
[339227555,1727376648814,-507.52994301,0.00021999,120]
[339227556,1727376648823,-548.17,0.00021999,30]
[339227557,1727376648833,-548.17,0.00021999,30]
[339227558,1727376648843,-548.17,0.00021999,30]
[339227559,1727376648853,-548.17,0.00021999,30]
[339227560,1727376648862,-504.29629356,0.00021999,120]
[339227561,1727376648872,-500.0,0.00021999,120]
[339227562,1727376648881,-548.17,0.00021999,30]
[339227563,1727376648892,-504.55886681,0.00021999,120]
[339227564,1727376648901,-548.17,0.00021999,30]
[339227565,1727376648912,-548.17,0.00021999,30]
[339227566,1727376648921,-548.17,0.00021999,30]
[339227567,1727376648931,-548.17,0.00021999,30]
[339227568,1727376648942,-350.63898744,0.00021999,120]
[339227569,1727376648952,-548.17,0.00021999,30]
[339227570,1727376648962,-548.34134653,0.00021999,30]
[339227571,1727376648972,-501.79604313,0.00021999,120]
[339227572,1727376648982,-501.417933,0.00021999,120]
[339227573,1727376648992,-503.37001526,0.00021999,120]
[339227574,1727376649002,-659.45,0.00021999,2]
[339227575,1727376649012,-659.45,0.00021999,2]
[339227576,1727376649022,-659.45,0.00021999,2]
[339227577,1727376649032,-659.45,0.00021999,2]
[339227578,1727376649042,-659.45,0.00021999,2]
[339227579,1727376649052,-500.0,0.00021999,120]
[339227580,1727376649062,-497.87307135,0.00021999,120]
[339227581,1727376649074,-659.45,0.00021999,2]
[339227582,1727376649090,-659.45,0.00021999,2]
[339227583,1727376649104,-659.45,0.00021999,2]
[339227584,1727376649119,-659.45,0.00021999,2]
[339227585,1727376649131,-659.45,0.00021999,2]
[339227586,1727376649146,-659.45,0.00021999,2]
[339227587,1727376649160,-659.45,0.00021999,2]
[339227588,1727376649173,-659.45,0.00021999,2]
[339227589,1727376649189,-659.45,0.00021999,2]
[339227590,1727376649203,-659.45,0.00021999,2]
[339227591,1727376649218,-659.45,0.00021999,2]
[339227592,1727376649234,-659.45,0.00021999,2]
[339227593,1727376649249,-659.45,0.00021999,2]
[339227594,1727376649261,-659.45,0.00021999,2]
[339227595,1727376649275,-659.45,0.00021999,2]
[339227596,1727376649288,-659.45,0.00021999,2]
[339227597,1727376649302,-659.45,0.00021999,2]
[339227598,1727376649316,-659.45,0.00021999,2]
[339227599,1727376649329,-659.67604651,0.00021999,2]
[339227600,1727376649340,-500.0,0.00021999,120]
[339227601,1727376649354,-256.48874465,0.00021999,120]
[339227602,1727376649368,-501.02999166,0.00021999,120]
[339227603,1727376649382,-566.00604449,0.00021999,120]
[339227604,1727376649396,-500.0,0.00021999,120]
[339227605,1727376649411,-516.81643273,0.00021999,120]
[339227606,1727376649425,-500.0,0.00021999,120]
[339227607,1727376649438,-311.80473511,0.00021999,120]
[339227608,1727376649450,-500.0,0.00021999,30]
[339227609,1727376649460,-502.62861919,0.00021999,120]
[339227610,1727376649472,-507.99662457,0.00021999,120]
[339227611,1727376649483,-505.48783982,0.00021999,120]
[339227612,1727376649498,-500.0,0.00021999,120]
[339227613,1727376649512,-500.0,0.00021999,120]
[339227614,1727376649524,-500.0,0.00021999,120]
[339227615,1727376649536,-500.0,0.00021999,120]
[339227616,1727376649549,-510.59149763,0.00021999,120]
[339227617,1727376649562,-252.6789085,0.00021999,120]
[339227618,1727376649576,-500.0,0.00021999,120]
[339227619,1727376649587,-505.18869353,0.00021999,120]
[339227620,1727376649598,-500.0,0.00021999,120]
[339227621,1727376649608,-500.0,0.00021999,120]
[339227622,1727376649620,-507.30503543,0.00021999,120]
[339227623,1727376649633,-504.6117391,0.00021999,120]
[339227624,1727376649645,-501.19042984,0.00021999,120]
[339227625,1727376649658,-500.0,0.00021999,120]
[339227626,1727376649670,-506.57052702,0.00021999,120]
[339227627,1727376649683,-510.15734833,0.00021999,120]
[339227628,1727376649694,-500.0,0.00021999,120]
[339227629,1727376649706,-502.97389559,0.00021999,120]
[339227630,1727376649717,-500.0,0.00021999,120]
[339227631,1727376649729,-393.22196267,0.00021999,120]
[339227632,1727376649742,-509.47306663,0.00021999,120]
[339227633,1727376649754,-500.0,0.00021999,120]
[339227634,1727376649766,-500.0,0.00021999,120]
[339227635,1727376649777,-500.0,0.00021999,120]
[339227636,1727376649789,-500.0,0.00021999,120]
[339227637,1727376649800,-500.0,0.00021999,120]
[339227638,1727376649811,-631.43763261,0.00021999,120]
[339227639,1727376649822,-500.0,0.00021999,120]
[339227640,1727376649833,-500.0,0.00021999,120]
[339227641,1727376649844,-500.0,0.00021999,120]
[339227642,1727376649856,-500.0,0.00021999,120]
[339227643,1727376649867,-500.0,0.00021999,120]
[339227644,1727376649879,-500.0,0.00021999,120]
[339227645,1727376649892,-500.0,0.00021999,120]
[339227646,1727376649904,-500.0,0.00021999,120]
[339227647,1727376649916,-500.0,0.00021999,120]
[339227648,1727376649928,-606.58122147,0.00021999,120]
[339227649,1727376649939,-500.78719108,0.00021999,120]
[339227650,1727376649951,-502.01512412,0.00021999,120]
[339227651,1727376649963,-500.0,0.00021999,120]
[339227652,1727376649974,-500.0,0.00021999,120]
[339227653,1727376649986,-500.0,0.00021999,120]
[339227654,1727376649995,-522.4921492,0.00021999,120]
[339227655,1727376650005,-609.0682272,0.00021999,120]
[339227656,1727376650015,-508.66414654,0.00021999,120]
[339227657,1727376650024,-500.0,0.00021999,120]
[339227658,1727376650034,-500.0,0.00021999,120]
[339227659,1727376650043,-157.99604474,0.00021999,120]
[339227660,1727376650053,-500.0,0.00021999,120]
[339227661,1727376650062,-504.48632035,0.00021999,120]
[339227662,1727376650071,-504.31479843,0.00021999,120]
[339227663,1727376650081,-500.0,0.00021999,120]
[339227664,1727376650091,-166.34343565,0.00021999,120]
[339227665,1727376650100,-500.0,0.00021999,120]
[339227666,1727376650110,-501.96895015,0.00021999,120]
[339227667,1727376650119,-500.0,0.00021999,120]
[339227668,1727376650128,-502.05420717,0.00021999,120]
[339227669,1727376650138,-500.0,0.00021999,120]
[339227670,1727376650149,-509.35448854,0.00021999,120]
[339227671,1727376650159,-500.0,0.00021999,120]
[339227672,1727376650168,-500.0,0.00021999,120]
[339227673,1727376650178,-263.37469876,0.00021999,120]
[339227674,1727376650188,-500.0,0.00021999,120]
[339227675,1727376650197,-500.0,0.00021999,120]
[339227676,1727376650207,-500.0,0.00021999,120]
[339227677,1727376650216,-500.0,0.00021999,120]
[339227678,1727376650226,-500.0,0.00021999,120]
[339227679,1727376650236,-500.0,0.00021999,120]
[339227680,1727376650246,-577.3447711,0.00021999,120]
[339227681,1727376650258,-500.0,0.00021999,120]
[339227682,1727376650268,-533.41614108,0.00021999,120]
[339227683,1727376650277,-500.0,0.00021999,120]
[339227684,1727376650287,-604.00328427,0.00021999,120]
[339227685,1727376650296,-502.05469324,0.00021999,120]
[339227686,1727376650305,-500.0,0.00021999,120]
[339227687,1727376650315,-500.0,0.00021999,120]
[339227688,1727376650498,-572.31,0.00021999,120]
[339227689,1727376650514,-500.0,0.00021999,120]
[339227690,1727376650526,-500.0,0.00021999,120]
[339227691,1727376650536,-500.0,0.00021999,120]
[339227692,1727376650545,-500.0,0.00021999,120]
[339227693,1727376650555,-500.0,0.00021999,120]
[339227694,1727376650564,-500.0,0.00021999,120]
[339227695,1727376650574,-500.0,0.00021999,120]
[339227696,1727376650584,-396.51253655,0.00021999,120]
[339227697,1727376650593,-500.0,0.00021999,120]
[339227698,1727376650603,-506.73108886,0.00021999,120]